fUSD/lending_fUSD_20240319
["ID","MTS","AMOUNT","RATE_DAILY","PERIOD"]
[319529430,1710827493508,-500.0,0.00055616,120]
[319529431,1710827493517,-506.26,0.00055616,120]
[319529432,1710827493527,-500.0,0.00055616,120]
[319529433,1710827493537,-500.0,0.00055616,120]
[319529434,1710827493547,-500.0,0.00055616,120]
[319529435,1710827493557,-500.0,0.00055616,120]
[319529436,1710827493566,-500.0,0.00055616,120]
[319529437,1710827493576,-500.0,0.00055616,120]
[319529438,1710827493587,-781.12,0.00055616,120]
[319529439,1710827493597,-500.0,0.00055616,120]
[319529440,1710827493607,-682.86,0.00055616,120]
[319529441,1710827493617,-1079.96,0.00055616,120]
[319529442,1710827493627,-500.0,0.00055616,120]
[319529443,1710827493636,-503.51583694,0.00055616,120]
[319529444,1710827493646,-500.0,0.00055616,120]
[319529445,1710827493656,-371.86290973,0.00055616,120]
[319529446,1710827493667,-500.0,0.00055616,120]
[319529447,1710827493678,-544.22,0.00055616,120]
[319529448,1710827493688,-285.15357618,0.00055616,120]
[319529449,1710827493699,-500.0,0.00055616,120]
[319529450,1710827493709,-500.0,0.00055616,120]
[319529451,1710827493720,-500.0,0.00055616,120]
[319529452,1710827493734,-500.0,0.00055616,120]
[319529453,1710827493745,-1218.62,0.00055616,120]
[319529454,1710827493754,-500.0,0.00055616,120]
[319529455,1710827493765,-500.0,0.00055616,120]
[319529456,1710827493776,-227.62746039,0.00055616,120]
[319529457,1710827493786,-605.79,0.00055616,120]
[319529458,1710827493797,-500.0,0.00055616,120]
[319529459,1710827493811,-801.78,0.00055616,120]
[319529460,1710827493821,-500.0,0.00055616,120]
[319529461,1710827493832,-500.0,0.00055616,120]
[319529462,1710827493842,-644.78,0.00055616,120]
[319529463,1710827493854,-1045.71,0.00055616,120]
[319529464,1710827494109,-500.0,0.00055616,120]
[319529465,1710827494119,-699.23,0.00055616,120]
[319529466,1710827494129,-500.0,0.00055616,120]
[319529467,1710827494140,-533.66,0.00055616,120]
[319529468,1710827494150,-500.0,0.00055616,120]
[319529469,1710827494160,-500.0,0.00055616,120]
[319529470,1710827494171,-500.0,0.00055616,120]
[319529471,1710827494181,-500.0,0.00055616,120]
[319529472,1710827494191,-749.29,0.00055616,120]
[319529473,1710827494201,-500.0,0.00055616,120]
[319529474,1710827494211,-1081.0,0.00055616,120]
[319529475,1710827494222,-796.97,0.00055616,120]
[319529476,1710827494237,-557.5,0.00055616,120]
[319529477,1710827494247,-500.0,0.00055616,120]
[319529478,1710827494258,-500.0,0.00055616,120]
[319529479,1710827494269,-500.0,0.00055616,120]
[319529480,1710827494279,-500.0,0.00055616,120]
[319529481,1710827494290,-1141.1,0.00055616,120]
[319529482,1710827494301,-500.0,0.00055616,120]
[319529483,1710827494315,-536.3,0.00055616,120]
[319529484,1710827494327,-500.0,0.00055616,120]
[319529485,1710827494338,-500.0,0.00055616,120]
[319529486,1710827494349,-500.0,0.00055616,120]
[319529487,1710827494361,-500.0,0.00055616,120]
[319529488,1710827494372,-500.0,0.00055616,120]
[319529489,1710827494382,-501.46064261,0.00055616,120]
[319529490,1710827494393,-500.0,0.00055616,120]
[319529491,1710827494403,-500.0,0.00055616,120]
[319529492,1710827494415,-864.62,0.00055616,120]
[319529493,1710827494425,-500.0,0.00055616,120]
[319529494,1710827494436,-500.0,0.00055616,120]
[319529495,1710827494448,-614.04,0.00055616,120]
[319529496,1710827494459,-699.92,0.00055616,120]
[319529497,1710827494470,-548.96990007,0.00055616,120]
[319529498,1710827494485,-190.20050955,0.00055616,120]
[319529499,1710827494496,-1727.86,0.00055616,120]
[319529500,1710827494507,-500.0,0.00055616,120]
[319529501,1710827494518,-583.92,0.00055616,120]
[319529502,1710827494529,-698.08,0.00055616,120]
[319529503,1710827494540,-513.11,0.00055616,120]
[319529504,1710827494550,-500.0,0.00055616,120]
[319529505,1710827494560,-543.31,0.00055616,120]
[319529506,1710827494570,-500.0,0.00055616,120]
[319529507,1710827494580,-921.53,0.00055616,120]
[319529508,1710827494590,-500.0,0.00055616,120]
[319529509,1710827494600,-2149.92,0.00055616,120]
[319529510,1710827494610,-179.29057838,0.00055616,120]
[319529511,1710827494620,-500.0,0.00055616,120]
[319529512,1710827494630,-523.61841474,0.00055616,120]
[319529513,1710827494640,-351.42080329,0.00055616,120]
[319529514,1710827494651,-500.0,0.00055616,120]
[319529515,1710827494661,-500.0,0.00055616,120]
[319529516,1710827494672,-676.27,0.00055616,120]
[319529517,1710827494682,-379.58086732,0.00055616,120]
[319529518,1710827494692,-632.4,0.00055616,120]
[319529519,1710827494702,-563.25,0.00055616,120]
[319529520,1710827494712,-500.0,0.00055616,120]
[319529521,1710827494722,-500.0,0.00055616,120]
[319529522,1710827494736,-570.85,0.00055616,120]
[319529523,1710827494747,-500.0,0.00055616,120]
[319529524,1710827494758,-821.94,0.00055616,120]
[319529525,1710827494770,-500.0,0.00055616,120]
[319529526,1710827494790,-353.77927537,0.00055616,120]
[319529527,1710827494801,-500.0,0.00055616,120]
[319529528,1710827494812,-500.0,0.00055616,120]
[319529529,1710827494822,-519.04,0.00055616,120]
[319529530,1710827494832,-500.0,0.00055616,120]
[319529531,1710827494844,-761.67,0.00055616,120]
[319529532,1710827494855,-500.0,0.00055616,120]
[319529533,1710827494866,-500.0,0.00055616,120]
[319529534,1710827494875,-500.0,0.00055616,120]
[319529535,1710827494887,-500.0,0.00055616,120]
[319529536,1710827494898,-759.95,0.00055616,120]
[319529537,1710827494908,-657.17,0.00055616,120]
[319529538,1710827494919,-668.5,0.00055616,120]
[319529539,1710827494930,-730.23,0.00055616,120]
[319529540,1710827494939,-1907.86,0.00055616,120]
[319529541,1710827494949,-500.0,0.00055616,120]
[319529542,1710827494961,-500.0,0.00055616,120]
[319529543,1710827494971,-500.0,0.00055616,120]
[319529544,1710827494987,-500.0,0.00055616,120]
[319529545,1710827494998,-500.0,0.00055616,120]
[319529546,1710827495008,-500.0,0.00055616,120]
[319529547,1710827495020,-518.09792555,0.00055616,120]
[319529548,1710827495031,-500.0,0.00055616,120]
[319529549,1710827495042,-1563.52,0.00055616,120]
[319529550,1710827495052,-503.18704593,0.00055616,120]
[319529551,1710827495063,-557.59,0.00055616,120]
[319529552,1710827495073,-905.54,0.00055616,120]
[319529553,1710827495085,-500.0,0.00055616,120]
[319529554,1710827495096,-857.79,0.00055616,120]
[319529555,1710827495107,-500.0,0.00055616,120]
[319529556,1710827495119,-500.0,0.00055616,120]
[319529557,1710827495131,-500.0,0.00055616,120]
[319529558,1710827495143,-500.0,0.00055616,120]
[319529559,1710827495154,-500.0,0.00055616,120]
[319529560,1710827495165,-500.0,0.00055616,120]
[319529561,1710827495176,-1016.7,0.00055616,120]
[319529562,1710827495187,-500.0,0.00055616,120]
[319529563,1710827495198,-500.0,0.00055616,120]
[319529564,1710827495209,-524.54,0.00055616,120]
[319529565,1710827495221,-500.0,0.00055616,120]
[319529566,1710827495237,-501.93667955,0.00055616,120]
[319529567,1710827495248,-645.51,0.00055616,120]
[319529568,1710827495260,-500.0,0.00055616,120]
[319529569,1710827495272,-500.0,0.00055616,120]
[319529570,1710827495285,-454.71354428,0.00055616,120]
[319529571,1710827495297,-500.0,0.00055616,120]
[319529572,1710827495309,-1500.0,0.00055616,120]
[319529573,1710827495319,-505.71438429,0.00055616,120]
[319529574,1710827495330,-500.0,0.00055616,120]
[319529575,1710827495341,-500.0,0.00055616,120]
[319529576,1710827495352,-500.0,0.00055616,120]
[319529577,1710827495363,-500.0,0.00055616,120]
[319529578,1710827495374,-500.0,0.00055616,120]
[319529579,1710827495385,-500.0,0.00055616,120]
[319529580,1710827495397,-500.0,0.00055616,120]
[319529581,1710827495408,-500.0,0.00055616,120]
[319529582,1710827495419,-552.87728796,0.00055616,120]
[319529583,1710827495430,-500.0,0.00055616,120]
[319529584,1710827495441,-500.0,0.00055616,120]
[319529585,1710827495452,-500.0,0.00055616,120]
[319529586,1710827495463,-500.0,0.00055616,120]
[319529587,1710827495474,-500.0,0.00055616,120]
[319529588,1710827495489,-500.0,0.00055616,120]
[319529589,1710827495500,-500.0,0.00055616,120]
[319529590,1710827495511,-500.0,0.00055616,120]
[319529591,1710827495522,-1025.32,0.00055616,120]
[319529592,1710827495533,-561.09,0.00055616,120]
[319529593,1710827495544,-571.37,0.00055616,120]
[319529594,1710827495555,-500.0,0.00055616,120]
[319529595,1710827495565,-752.74,0.00055616,120]
[319529596,1710827495577,-500.0,0.00055616,120]
[319529597,1710827495588,-500.0,0.00055616,120]
[319529598,1710827495599,-931.29,0.00055616,120]
[319529599,1710827495611,-500.0,0.00055616,120]
[319529600,1710827495622,-500.0,0.00055616,120]
[319529601,1710827495633,-500.0,0.00055616,120]
[319529602,1710827495643,-563.82,0.00055616,120]
[319529603,1710827495654,-643.92,0.00055616,120]
[319529604,1710827495665,-500.0,0.00055616,120]
[319529605,1710827495675,-500.0,0.00055616,120]
[319529606,1710827495687,-505.66302328,0.00055616,120]
[319529607,1710827495698,-500.0,0.00055616,120]
[319529608,1710827495709,-652.21,0.00055616,120]
[319529609,1710827495720,-500.0,0.00055616,120]
[319529610,1710827495736,-500.0,0.00055616,120]
[319529611,1710827495747,-500.0,0.00055616,120]
[319529612,1710827495758,-500.0,0.00055616,120]
[319529613,1710827495770,-500.0,0.00055616,120]
[319529614,1710827495783,-500.0,0.00055616,120]
[319529615,1710827495793,-500.0,0.00055616,120]
[319529616,1710827495805,-500.0,0.00055616,120]
[319529617,1710827495819,-500.0,0.00055616,120]
[319529618,1710827495830,-500.0,0.00055616,2]
[319529619,1710827495842,-500.0,0.00055616,120]
[319529620,1710827495853,-500.0,0.00055616,120]
[319529621,1710827495866,-500.0,0.00055616,120]
[319529622,1710827495877,-500.0,0.00055616,120]
[319529623,1710827495889,-500.0,0.00055616,120]
[319529624,1710827495900,-1427.61,0.00055616,120]
[319529625,1710827495911,-269.05762245,0.00055616,120]
[319529626,1710827495922,-890.66,0.00055616,120]
[319529627,1710827495933,-500.0,0.00055616,120]
[319529628,1710827495944,-500.0,0.00055616,120]
[319529629,1710827495955,-500.0,0.00055616,120]
[319529630,1710827495966,-500.0,0.00055616,120]
[319529631,1710827495982,-999.99,0.00055616,120]
[319529632,1710827495994,-500.0,0.00055616,120]
[319529633,1710827496004,-500.0,0.00055616,120]
[319529634,1710827496016,-500.0,0.00055616,120]
[319529635,1710827496026,-500.0,0.00055616,120]
[319529636,1710827496038,-500.0,0.00055616,120]
[319529637,1710827496049,-2045.3,0.00055616,120]
[319529638,1710827496060,-759.21,0.00055616,120]
[319529639,1710827496072,-1524.05,0.00055616,120]
[319529640,1710827496083,-500.0,0.00055616,120]
[319529641,1710827496094,-202.44277798,0.00055616,120]
[319529642,1710827496105,-500.0,0.00055616,120]
[319529643,1710827496116,-500.0,0.00055616,120]
[319529644,1710827496127,-500.0,0.00055616,120]
[319529645,1710827496138,-500.0,0.00055616,120]
[319529646,1710827496149,-809.23,0.00055616,120]
[319529647,1710827496160,-1247.44,0.00055616,120]
[319529648,1710827496171,-500.0,0.00055616,120]
[319529649,1710827496182,-500.0,0.00055616,120]
[319529650,1710827496193,-500.0,0.00055616,120]
[319529651,1710827496205,-250.27188149,0.00055616,120]
[319529652,1710827496217,-576.17,0.00055616,120]
[319529653,1710827496228,-500.0,0.00055616,120]
[319529654,1710827496246,-500.0,0.00055616,120]
[319529655,1710827496258,-961.43,0.00055616,120]
[319529656,1710827496269,-798.97,0.00055616,120]
[319529657,1710827496280,-1739.68,0.00055616,120]
[319529658,1710827496291,-1188.57,0.00055616,120]
[319529659,1710827496302,-515.11,0.00055616,120]
[319529660,1710827496313,-500.0,0.00055616,120]
[319529661,1710827496324,-500.0,0.00055616,120]
[319529662,1710827496337,-558.28,0.00055616,120]
[319529663,1710827496348,-523.56381285,0.00055616,120]
[319529664,1710827496360,-500.0,0.00055616,120]
[319529665,1710827496371,-500.0,0.00055616,120]
[319529666,1710827496382,-550.94,0.00055616,120]
[319529667,1710827496394,-1235.92,0.00055616,120]
[319529668,1710827496404,-500.0,0.00055616,120]
[319529669,1710827496415,-500.0,0.00055616,120]
[319529670,1710827496428,-1104.51,0.00055616,120]
[319529671,1710827496440,-500.0,0.00055616,120]
[319529672,1710827496452,-901.96,0.00055616,120]
[319529673,1710827496464,-502.35,0.00055616,120]
[319529674,1710827496476,-500.0,0.00055616,120]
[319529675,1710827496496,-518.81,0.00055616,120]
[319529676,1710827496507,-3642.47,0.00055616,120]
[319529677,1710827496519,-500.0,0.00055616,120]
[319529678,1710827496531,-478.01939388,0.00055616,120]
[319529679,1710827496544,-500.0,0.00055616,120]
[319529680,1710827496556,-554.97,0.00055616,120]
[319529681,1710827496568,-1020.96,0.00055616,120]
[319529682,1710827496579,-500.0,0.00055616,120]
[319529683,1710827496592,-623.70284179,0.00055616,120]
[319529684,1710827496603,-500.0,0.00055616,120]
[319529685,1710827496615,-500.0,0.00055616,120]
[319529686,1710827496627,-934.66,0.00055616,120]
[319529687,1710827496640,-562.86,0.00055616,120]
[319529688,1710827496651,-508.43466753,0.00055616,120]
[319529689,1710827496662,-1112.34,0.00055616,120]
[319529690,1710827496672,-823.49,0.00055616,120]
[319529691,1710827496684,-1068.94,0.00055616,120]
[319529692,1710827496695,-945.08,0.00055616,120]
[319529693,1710827496705,-500.0,0.00055616,120]
[319529694,1710827496716,-447.24103711,0.00055616,120]
[319529695,1710827496727,-907.18,0.00055616,120]
[319529696,1710827496742,-543.38,0.00055616,120]
[319529697,1710827496752,-1318.29,0.00055616,120]
[319529698,1710827496762,-500.0,0.00055616,120]
[319529699,1710827496860,-938.51,0.00055616,120]
[319529700,1710827496870,-708.65,0.00055616,120]
[319529701,1710827496880,-500.0,0.00055616,120]
[319529702,1710827496893,-675.56,0.00055616,120]
[319529703,1710827496904,-500.0,0.00055616,120]
[319529704,1710827496915,-1108.77,0.00055616,120]
[319529705,1710827496926,-500.0,0.00055616,120]
[319529706,1710827496937,-657.29,0.00055616,120]
[319529707,1710827496948,-530.10100741,0.00055616,120]
[319529708,1710827496959,-500.0,0.00055616,120]
[319529709,1710827496970,-500.0,0.00055616,120]
[319529710,1710827496985,-500.0,0.00055616,120]
[319529711,1710827496996,-991.97,0.00055616,120]
[319529712,1710827497008,-500.0,0.00055616,120]
[319529713,1710827497019,-956.61,0.00055616,120]
[319529714,1710827497030,-578.44,0.00055616,120]
[319529715,1710827497041,-500.0,0.00055616,120]
[319529716,1710827497052,-500.0,0.00055616,120]
[319529717,1710827497064,-823.71,0.00055616,120]
[319529718,1710827497076,-1621.14,0.00055616,120]
[319529719,1710827497087,-500.0,0.00055616,120]
[319529720,1710827497098,-500.0,0.00055616,120]
[319529721,1710827497109,-500.0,0.00055616,120]
[319529722,1710827497120,-500.0,0.00055616,120]
[319529723,1710827497131,-500.0,0.00055616,120]
[319529724,1710827497142,-500.0,0.00055616,120]
[319529725,1710827497152,-500.0,0.00055616,120]
[319529726,1710827497163,-1395.4,0.00055616,120]
[319529727,1710827497173,-872.35,0.00055616,120]
[319529728,1710827497184,-500.0,0.00055616,120]
[319529729,1710827497195,-863.59,0.00055616,120]
[319529730,1710827497205,-500.0,0.00055616,120]
[319529731,1710827497216,-1782.11,0.00055616,120]
[319529732,1710827497227,-500.0,0.00055616,120]
[319529733,1710827497245,-1222.64,0.00055616,120]
[319529734,1710827497256,-500.0,0.00055616,120]
[319529735,1710827497267,-500.0,0.00055616,120]
[319529736,1710827497278,-500.0,0.00055616,120]
[319529737,1710827497289,-500.0,0.00055616,120]
[319529738,1710827497299,-500.0,0.00055616,120]
[319529739,1710827497310,-651.34,0.00055616,120]
[319529740,1710827497320,-500.0,0.00055616,120]
[319529741,1710827497330,-1507.72,0.00055616,120]
[319529742,1710827497341,-500.0,0.00055616,120]
[319529743,1710827497351,-500.0,0.00055616,120]
[319529744,1710827497362,-1146.22,0.00055616,120]
[319529745,1710827497373,-500.0,0.00055616,120]
[319529746,1710827497384,-500.0,0.00055616,120]
[319529747,1710827497395,-169.88846242,0.00055616,120]
[319529748,1710827497415,-736.08,0.00055616,120]
[319529749,1710827497426,-500.0,0.00055616,120]
[319529750,1710827497435,-500.0,0.00055616,120]
[319529751,1710827497445,-500.0,0.00055616,2]
[319529752,1710827497456,-1252.35,0.00055616,120]
[319529753,1710827497466,-500.0,0.00055616,120]
[319529754,1710827497477,-500.0,0.00055616,120]
[319529755,1710827497493,-1290.08,0.00055616,120]
[319529756,1710827497503,-607.86,0.00055616,120]
[319529757,1710827497514,-500.0,0.00055616,120]
[319529758,1710827497525,-920.81,0.00055616,120]
[319529759,1710827497536,-500.0,0.00055616,120]
[319529760,1710827497546,-712.48,0.00055616,120]
[319529761,1710827497557,-672.43,0.00055616,120]
[319529762,1710827497567,-500.0,0.00055616,120]
[319529763,1710827497578,-1446.99,0.00055616,120]
[319529764,1710827497588,-500.0,0.00055616,120]
[319529765,1710827497599,-500.0,0.00055616,120]
[319529766,1710827497609,-165.80682881,0.00055616,120]
[319529767,1710827497619,-681.95,0.00055616,120]
[319529768,1710827497629,-500.0,0.00055616,120]
[319529769,1710827497639,-1203.27,0.00055616,120]
[319529770,1710827497650,-500.0,0.00055616,120]
[319529771,1710827497661,-500.0,0.00055616,120]
[319529772,1710827497671,-636.32,0.00055616,120]
[319529773,1710827497681,-500.0,0.00055616,120]
[319529774,1710827497692,-500.0,0.00055616,120]
[319529775,1710827497703,-500.0,0.00055616,120]
[319529776,1710827497713,-500.0,0.00055616,120]
[319529777,1710827497724,-561.34,0.00055616,120]
[319529778,1710827497739,-992.51,0.00055616,120]
[319529779,1710827497749,-500.0,0.00055616,120]
[319529780,1710827497759,-2015.74,0.00055616,120]
[319529781,1710827497771,-2014.25,0.00055616,120]
[319529782,1710827497783,-500.0,0.00055616,120]
[319529783,1710827497793,-500.0,0.00055616,120]
[319529784,1710827497804,-500.0,0.00055616,120]
[319529785,1710827497816,-500.0,0.00055616,120]
[319529786,1710827497826,-1066.88,0.00055616,120]
[319529787,1710827497837,-500.0,0.00055616,120]
[319529788,1710827497847,-785.05,0.00055616,120]
[319529789,1710827497857,-500.0,0.00055616,120]
[319529790,1710827497868,-500.0,0.00055616,120]
[319529791,1710827497878,-500.0,0.00055616,120]
[319529792,1710827497888,-500.0,0.00055616,120]
[319529793,1710827497898,-500.0,0.00055616,120]
[319529794,1710827497908,-500.0,0.00055616,120]
[319529795,1710827497918,-500.0,0.00055616,120]
[319529796,1710827497928,-3649.43,0.00055616,120]
[319529797,1710827497938,-1361.02,0.00055616,120]
[319529798,1710827497948,-643.73,0.00055616,120]
[319529799,1710827497958,-500.0,0.00055616,120]
[319529800,1710827497968,-691.94,0.00055616,120]
[319529801,1710827497978,-500.0,0.00055616,120]
[319529802,1710827497991,-504.48212733,0.00055616,120]
[319529803,1710827498001,-500.0,0.00055616,120]
[319529804,1710827498011,-500.0,0.00055616,120]
[319529805,1710827498021,-500.0,0.00055616,120]
[319529806,1710827498031,-1638.2,0.00055616,120]
[319529807,1710827498041,-6349.49,0.00055616,120]
[319529808,1710827498052,-568.86807606,0.00055616,120]
[319529809,1710827498062,-726.71,0.00055616,120]
[319529810,1710827498073,-500.0,0.00055616,120]
[319529811,1710827498083,-3479.07,0.00055616,120]
[319529812,1710827498092,-500.0,0.00055616,120]
[319529813,1710827498103,-592.5,0.00055616,120]
[319529814,1710827498113,-1487.86,0.00055616,120]
[319529815,1710827498123,-500.0,0.00055616,120]
[319529816,1710827498133,-1617.51,0.00055616,120]
[319529817,1710827498143,-523.58,0.00055616,120]
[319529818,1710827498154,-1381.97,0.00055616,120]
[319529819,1710827498164,-500.0,0.00055616,120]
[319529820,1710827498174,-1232.76,0.00055616,120]
[319529821,1710827498184,-500.0,0.00055616,120]
[319529822,1710827498195,-500.0,0.00055616,120]
[319529823,1710827498205,-500.0,0.00055616,120]
[319529824,1710827498215,-1906.74,0.00055616,120]
[319529825,1710827498226,-1828.07,0.00055616,120]
[319529826,1710827498238,-1034.04,0.00055616,120]
[319529827,1710827498247,-500.0,0.00055616,120]
[319529828,1710827498257,-500.0,0.00055616,120]
[319529829,1710827498266,-500.0,0.00055616,120]
[319529830,1710827498276,-500.0,0.00055616,120]
[319529831,1710827498285,-1028.45,0.00055616,120]
[319529832,1710827498295,-500.0,0.00055616,120]
[319529833,1710827498305,-500.0,0.00055616,120]
[319529834,1710827498316,-1268.03,0.00055616,120]
[319529835,1710827498326,-385.28281656,0.00055616,120]
[319529836,1710827498336,-500.0,0.00055616,120]
[319529837,1710827498346,-1148.36,0.00055616,120]
[319529838,1710827498356,-500.0,0.00055616,120]
[319529839,1710827498366,-500.0,0.00055616,120]
[319529840,1710827498376,-1653.79,0.00055616,120]
[319529841,1710827498386,-451.50449938,0.00055616,120]
[319529842,1710827498403,-500.0,0.00055616,120]
[319529843,1710827498413,-1023.81,0.00055616,120]
[319529844,1710827498423,-500.0,0.00055616,120]
[319529845,1710827498433,-500.0,0.00055616,120]
[319529846,1710827498444,-2088.57,0.00055616,120]
[319529847,1710827498453,-500.0,0.00055616,120]
[319529848,1710827498464,-562.53,0.00055616,120]
[319529849,1710827498474,-500.0,0.00055616,2]
[319529850,1710827498488,-500.0,0.00055616,120]
[319529851,1710827498498,-625.71,0.00055616,120]
[319529852,1710827498509,-500.0,0.00055616,120]
[319529853,1710827498520,-500.0,0.00055616,120]
[319529854,1710827498531,-1750.75,0.00055616,120]
[319529855,1710827498541,-501.08,0.00055616,120]
[319529856,1710827498552,-500.0,0.00055616,120]
[319529857,1710827498564,-1049.36,0.00055616,120]
[319529858,1710827498574,-827.55,0.00055616,120]
[319529859,1710827498585,-888.26,0.00055616,120]
[319529860,1710827498595,-982.82,0.00055616,120]
[319529861,1710827498606,-1779.27,0.00055616,120]
[319529862,1710827498617,-500.0,0.00055616,120]
[319529863,1710827498627,-500.0,0.00055616,120]
[319529864,1710827498638,-500.0,0.00055616,120]
[319529865,1710827498648,-500.0,0.00055616,120]
[319529866,1710827498659,-500.0,0.00055616,120]
[319529867,1710827498670,-1147.76,0.00055616,120]
[319529868,1710827498681,-1745.12,0.00055616,120]
[319529869,1710827498692,-500.0,0.00055616,120]
[319529870,1710827498702,-925.63,0.00055616,120]
[319529871,1710827498713,-854.16,0.00055616,120]
[319529872,1710827498723,-505.11,0.00055616,120]
[319529873,1710827498739,-500.0,0.00055616,120]
[319529874,1710827498749,-500.0,0.00055616,120]
[319529875,1710827498760,-734.76,0.00055616,120]
[319529876,1710827498772,-535.28,0.00055616,120]
[319529877,1710827498783,-526.02,0.00055616,120]
[319529878,1710827498793,-500.0,0.00055616,120]
[319529879,1710827498804,-500.0,0.00055616,120]
[319529880,1710827498816,-500.0,0.00055616,120]
[319529881,1710827498827,-500.0,0.00055616,120]
[319529882,1710827498838,-1564.61,0.00055616,120]
[319529883,1710827498848,-1313.48,0.00055616,120]
[319529884,1710827498860,-2662.67,0.00055616,120]
[319529885,1710827498873,-500.0,0.00055616,120]
[319529886,1710827498883,-500.0,0.00055616,120]
[319529887,1710827498894,-500.0,0.00055616,120]
[319529888,1710827498904,-500.0,0.00055616,120]
[319529889,1710827498914,-1397.08,0.00055616,120]
[319529890,1710827498924,-866.38,0.00055616,120]
[319529891,1710827498935,-1097.4,0.00055616,120]
[319529892,1710827498945,-1439.36,0.00055616,120]
[319529893,1710827498955,-500.0,0.00055616,120]
[319529894,1710827498964,-500.0,0.00055616,120]
[319529895,1710827498974,-500.0,0.00055616,120]
[319529896,1710827498986,-1928.4,0.00055616,120]
[319529897,1710827498996,-500.0,0.00055616,120]
[319529898,1710827499006,-500.0,0.00055616,120]
[319529899,1710827499015,-1964.81,0.00055616,120]
[319529900,1710827499024,-660.08,0.00055616,120]
[319529901,1710827499034,-1239.73,0.00055616,120]
[319529902,1710827499044,-518.49986225,0.00055616,120]
[319529903,1710827499054,-500.0,0.00055616,120]
[319529904,1710827499064,-508.32094837,0.00055616,120]
[319529905,1710827499073,-967.08,0.00055616,120]
[319529906,1710827499083,-500.0,0.00055616,120]
[319529907,1710827499093,-500.0,0.00055616,120]
[319529908,1710827499103,-1730.58,0.00055616,120]
[319529909,1710827499113,-500.0,0.00055616,120]
[319529910,1710827499124,-500.0,0.00055616,120]
[319529911,1710827499133,-500.0,0.00055616,120]
[319529912,1710827499143,-1374.2,0.00055616,120]
[319529913,1710827499153,-2060.17,0.00055616,120]
[319529914,1710827499164,-1049.65,0.00055616,120]
[319529915,1710827499174,-510.5,0.00055616,120]
[319529916,1710827499184,-500.0,0.00055616,120]
[319529917,1710827499195,-500.0,0.00055616,120]
[319529918,1710827499205,-500.0,0.00055616,120]
[319529919,1710827499216,-500.0,0.00055616,120]
[319529920,1710827499226,-500.0,0.00055616,120]
[319529921,1710827499238,-500.0,0.00055616,120]
[319529922,1710827499248,-1994.76,0.00055616,120]
[319529923,1710827499258,-500.0,0.00055616,120]
[319529924,1710827499268,-1336.07,0.00055616,120]
[319529925,1710827499278,-2991.56,0.00055616,120]
[319529926,1710827499288,-595.79,0.00055616,120]
[319529927,1710827499298,-500.0,0.00055616,120]
[319529928,1710827499308,-500.0,0.00055616,120]
[319529929,1710827499317,-1021.8,0.00055616,120]